[Event "SixDays Budapest IM-A 11-2024"]
[Site "Budapest"]
[Date "2024.11.25"]
[Round "6.2"]
[White "Krishna C R G"]
[Black "Semprun Martinez, Fernando"]
[Result "1-0"]
[ECO "A48"]
[WhiteElo "2448"]
[BlackElo "2025"]
[Annotator "TA"]
[PlyCount "75"]
[EventDate "2024.11.20"]
[EventType "tourn"]
[EventCountry "HUN"]
[SourceTitle "playchess.com"]
[Source "ChessBase"]
[SourceQuality "1"]
[TimeControl "5400+30"]

{[%evp 11,75,11,22,23,32,0,14,8,14,22,16,12,4,4,0,-13,-6,-7,44,38,38,12,45,0,21,21,17,17,14,15,16,12,15,9,18,22,111,124,110,110,107,104,116,101,96,91,82,88,126,149,205,194,265,259,350,315,464,466,489,486,578,571,660,590,1564,1545]} 1. d4 {[%emt 0:12:08]} Nf6 {[%emt 0:00:46]} 2. Nf3 {[%emt 0:00:52]} g6 {[%emt 0:00:23]} 3. Nc3 {[%emt 0:00:36]} d5 {[%emt 0:00:02]} 4. Bf4 {[%emt 0:00:07]} Bg7 {[%emt 0:00:04]} 5. e3 {[%emt 0:00:05]} O-O {[%emt 0:00:11]} 6. Be2 {[%emt 0:00:03]} a6 {[%emt 0:04:16]} 7. Ne5 {[%emt 0:03:25]} c5 {[%emt 0:03:32]} 8. dxc5 {[%emt 0:14:29]} Qa5 {[%emt 0:00:53]} 9. O-O {[%emt 0:12:49] The position is equal.} Qxc5 {[%emt 0:00:19]} 10. Bf3 Be6 {[%emt 0:02:05]} 11. Ne2 {[%emt 0:12:03]} Nc6 {[%emt 0:03:10]} 12. Nxc6 {[%emt 0:02:20]} bxc6 {[%emt 0:01:23]} 13. Nd4 {[%emt 0:03:15]} Bd7 {[%emt 0:02:46]} 14. Be5 {[%emt 0:01:12]} Ne8 {[%emt 0:02:20]} (14... a5 $11) 15. Nb3 $14 {[%emt 0:00:02]} Qa7 {[%emt 0:03:02]} 16. Bd4 {[%emt 0:01:35]} Qc7 {[%emt 0:01:09]} (16... Bxd4 {simplifies} 17. exd4 Nd6 18. Qd2 a5) 17. e4 {[%emt 0:01:08]} Bxd4 {[%emt 0:08:48]} 18. Qxd4 {[%emt 0:00:49]} e5 {[%emt 0:01:01]} 19. Qc5 {[%emt 0:01:06]} Rc8 {[%emt 0:06:06]} 20. c3 {[%emt 0:04:58]} Nf6 {[%emt 0:00:51]} 21. Rfe1 {[%emt 0:05:27][%cal Re4d5,Bf1e1,Be1e4,Be4b4,Bb4b7][%mdl 32]} Rfe8 {[%emt 0:00:23]} 22. Rad1 {[%emt 0:00:01][%cal Re4d5]} Qb8 {[%emt 0:07:10]} 23. Qa3 {[%emt 0:01:57][%cal Re4d5]} Bg4 {[%emt 0:05:26]} (23... Be6 $11) 24. Bxg4 $16 {[%emt 0:00:48]} (24. exd5 Bxf3 25. gxf3 cxd5 26. Qxa6 Kg7 $14) 24... Nxg4 {[%emt 0:00:01]} 25. Qxa6 {[%emt 0:04:12]} dxe4 {[%emt 0:03:04]} 26. Rxe4 {[%emt 0:00:36]} Nf6 {[%emt 0:01:11]} 27. Rb4 {[%emt 0:00:32] White has more active pieces.} Rcd8 {[%emt 0:01:36][%cal Bc8d8,Bd8d5,Bd5d1][%mdl 32]} 28. Re1 {[%emt 0:01:00]} Qd6 {[%emt 0:00:58]} 29. Qc4 {[%emt 0:02:22]} Nd5 {[%emt 0:01:19] Prevents Rb6.} 30. Rb7 {[%emt 0:00:06]} Qf6 {[%emt 0:05:23]} (30... Rb8 $16 {is a better defense.} 31. Nc5 Rxb7 32. Nxb7 Qc7) 31. g3 {[%emt 0:02:00]} Ne7 {[%emt 0:06:49]} (31... Rb8 $142 32. Rxb8 Rxb8) 32. Nc5 {[%emt 0:02:01][%cal Bb3c5,Bc5e4,Be4c5][%mdl 32]} Rd5 {[%emt 0:04:23]} 33. Ne4 {[%emt 0:02:40]} Qf5 {[%emt 0:01:38]} (33... Qf3 {was worth a try.} 34. a4 Kh8) 34. a4 $18 {[%emt 0:00:24][%cal Ba2a4,Ba4a5,Ba5a6][%mdl 32] White is clearly winning.} Kg7 {[%emt 0:00:36] [#]} 35. a5 $1 {[%emt 0:00:53][%mdl 512]} Qe6 {[%emt 0:05:17]} (35... Qf3 36. a6) 36. a6 {[%emt 0:01:31]} Rd1 {[%emt 0:00:02]} 37. Qe2 {[%emt 0:00:01]} Rd7 {[%emt 0:03:56]} 38. Nc5 {[%emt 0:00:15] Weighted Error Value: White=0.09 (flawless) /Black=0.32.  Mistake:       	---       	Black=5      Inaccurate:     	White=2     	Black=4      OK:         	White=13    	Black=12     Best:        	White=2     	---        Brilliant:      	White=1     	---} 1-0

[Event "SixDays Budapest IM-A 11-2024"]
[Site "Budapest"]
[Date "2024.11.25"]
[Round "6.3"]
[White "Fodor, Balazs"]
[Black "Horvath, David"]
[Result "1/2-1/2"]
[ECO "A05"]
[WhiteElo "2206"]
[BlackElo "2321"]
[Annotator "RC"]
[PlyCount "40"]
[EventDate "2024.11.20"]
[EventType "tourn"]
[EventCountry "HUN"]
[SourceTitle "playchess.com"]
[Source "ChessBase"]
[SourceQuality "1"]
[TimeControl "5400+30"]

1. Nf3 {[%emt 0:05:55]} Nf6 {[%emt 0:00:46]} 2. b3 {[%emt 0:00:07]} d5 {[%emt 0:04:54]} 3. Bb2 {[%emt 0:02:10]} Bf5 {[%emt 0:00:06]} 4. g3 {[%emt 0:00:28]} e6 {[%emt 0:00:16]} 5. Bg2 {[%emt 0:00:06]} Be7 {[%emt 0:00:53]} 6. d3 {[%emt 0:00:08]} h6 {[%emt 0:00:07]} 7. O-O {[%emt 0:00:08]} O-O {[%emt 0:00:06]} 8. c4 {[%emt 0:00:15]} c6 {[%emt 0:02:12]} 9. Nbd2 {[%emt 0:00:09]} Nbd7 {[%emt 0:00:19]} 10. Qc2 {[%emt 0:01:35]} a5 {[%emt 0:00:35]} 11. a3 {[%emt 0:00:06]} Bd6 {[%emt 0:05:00]} 12. e4 {[%emt 0:32:19]} dxe4 {[%emt 0:00:13]} 13. Nxe4 {[%emt 0:01:39]} Be7 {[%emt 0:13:07]} 14. Rfd1 {[%emt 0:01:50]} Qc7 {[%emt 0:06:12]} 15. h3 {[%emt 0:09:58]} Rfd8 {[%emt 0:06:08]} 16. Bc3 {[%emt 0:01:27]} Nxe4 {[%emt 0:13:53]} 17. dxe4 {[%emt 0:00:27]} Bh7 {[%emt 0:00:05]} 18. Ne1 {[%emt 0:11:14]} c5 {[%emt 0:08:14]} 19. Qb2 {[%emt 0:09:07]} e5 {[%emt 0:19:14]} 20. Nc2 {[%emt 0:01:43]} f6 {[%emt 0:01:38]} 1/2-1/2

[Event "SixDays Budapest IM-A 11-2024"]
[Site "Budapest"]
[Date "2024.11.25"]
[Round "6.4"]
[White "Nemeth, Zalan"]
[Black "Mahitosh Dey"]
[Result "1/2-1/2"]
[ECO "E64"]
[WhiteElo "2268"]
[BlackElo "2220"]
[Annotator "RC"]
[PlyCount "33"]
[EventDate "2024.11.20"]
[EventType "tourn"]
[EventCountry "HUN"]
[SourceTitle "playchess.com"]
[Source "ChessBase"]
[SourceQuality "1"]
[TimeControl "5400+30"]

1. d4 {[%emt 0:00:01]} Nf6 {[%emt 0:16:14]} 2. c4 {[%emt 0:00:10]} g6 {[%emt 0:00:05]} 3. g3 {[%emt 0:00:04]} Bg7 {[%emt 0:00:13]} 4. Bg2 {[%emt 0:00:04]} O-O {[%emt 0:00:25]} 5. Nc3 {[%emt 0:00:04]} d6 {[%emt 0:00:03]} 6. Nf3 {[%emt 0:00:04]} c5 {[%emt 0:00:02]} 7. dxc5 {[%emt 0:00:41]} dxc5 {[%emt 0:00:16]} 8. Be3 {[%emt 0:00:09]} Qa5 {[%emt 0:02:52]} 9. O-O {[%emt 0:01:16]} Nc6 {[%emt 0:10:00]} 10. Qb3 {[%emt 0:05:05]} Qb4 {[%emt 0:04:33]} 11. Qxb4 {[%emt 0:06:22]} cxb4 {[%emt 0:00:10]} 12. Nb5 {[%emt 0:11:58]} Ng4 {[%emt 0:07:12]} 13. Bc5 {[%emt 0:00:07]} Bxb2 {[%emt 0:00:41]} 14. Rab1 {[%emt 0:00:12]} Bg7 {[%emt 0:03:51]} 15. Nc7 {[%emt 0:15:13]} Rb8 {[%emt 0:01:21]} 16. h3 {[%emt 0:01:25]} b6 {[%emt 0:04:09]} 17. Bxb4 {[%emt 0:01:16]} 1/2-1/2

[Event "SixDays Budapest IM-A 11-2024"]
[Site "Budapest"]
[Date "2024.11.25"]
[Round "6.5"]
[White "Kolimar, Kristof Pal"]
[Black "Otsuka, Shou"]
[Result "1-0"]
[ECO "A40"]
[WhiteElo "2286"]
[BlackElo "2248"]
[Annotator "RC"]
[PlyCount "49"]
[EventDate "2024.11.20"]
[EventType "tourn"]
[EventCountry "HUN"]
[SourceTitle "playchess.com"]
[Source "ChessBase"]
[SourceQuality "1"]
[TimeControl "5400+30"]

1. d4 {[%emt 0:00:07]} Nf6 {[%emt 0:01:44]} 2. c4 {[%emt 0:00:05]} e6 {[%emt 0:00:03]} 3. g3 {[%emt 0:00:10]} Bb4+ {[%emt 0:00:05]} 4. Bd2 {[%emt 0:00:17]} a5 {[%emt 0:00:01]} 5. Bg2 {[%emt 0:00:21]} d6 {[%emt 0:00:59]} 6. e4 {[%emt 0:02:31]} e5 {[%emt 0:03:20]} 7. Ne2 {[%emt 0:04:59]} O-O {[%emt 0:00:09]} 8. O-O {[%emt 0:01:17]} exd4 {[%emt 0:05:05]} 9. Nxd4 {[%emt 0:01:36]} Re8 {[%emt 0:00:17]} 10. Qc2 {[%emt 0:04:17]} Nbd7 {[%emt 0:01:26]} 11. Nc3 {[%emt 0:06:58]} c6 {[%emt 0:04:02]} 12. Rad1 {[%emt 0:04:38]} Ne5 {[%emt 0:04:43]} 13. b3 {[%emt 0:02:27]} Bc5 {[%emt 0:07:46]} 14. Nf5 {[%emt 0:07:16]} Bxf5 {[%emt 0:09:21]} 15. exf5 {[%emt 0:00:12]} h6 {[%emt 0:00:01]} 16. h3 {[%emt 0:09:12]} Qc7 {[%emt 0:00:06]} 17. Na4 {[%emt 0:06:04]} Ba7 {[%emt 0:02:14]} 18. Bc3 {[%emt 0:00:58]} h5 {[%emt 0:07:44]} 19. Kh1 {[%emt 0:13:18]} h4 {[%emt 0:07:44]} 20. Qd2 {[%emt 0:06:14]} Bb8 {[%emt 0:12:10]} 21. Qg5 {[%emt 0:05:13]} hxg3 {[%emt 0:00:02]} 22. f4 {[%emt 0:02:58]} Ned7 {[%emt 0:01:09]} 23. Rd3 {[%emt 0:00:26]} Kh8 {[%emt 0:11:34]} 24. Rxg3 {[%emt 0:02:37]} Rg8 {[%emt 0:00:20]} 25. Rg4 {[%emt 0:02:12]} 1-0

[Event "SixDays Budapest IM-A 11-2024"]
[Site "Budapest"]
[Date "2024.11.26"]
[Round "7.1"]
[White "Otsuka, Shou"]
[Black "To, Nhat Minh"]
[Result "0-1"]
[ECO "C67"]
[WhiteElo "2248"]
[BlackElo "2314"]
[Annotator "RC"]
[PlyCount "112"]
[EventDate "2024.11.20"]
[EventType "tourn"]
[EventCountry "HUN"]
[SourceTitle "playchess.com"]
[Source "ChessBase"]
[SourceQuality "1"]
[TimeControl "5400+30"]

1. e4 {[%emt 0:00:00]} e5 {[%emt 0:05:09]} 2. Nf3 {[%emt 0:00:03]} Nc6 {[%emt 0:00:04]} 3. Bb5 {[%emt 0:00:05]} Nf6 {[%emt 0:00:05]} 4. O-O {[%emt 0:00:05]} Nxe4 {[%emt 0:00:05]} 5. Re1 {[%emt 0:00:03]} Nd6 {[%emt 0:00:08]} 6. Nxe5 {[%emt 0:00:04]} Be7 {[%emt 0:00:08]} 7. Bf1 {[%emt 0:00:06]} Nxe5 {[%emt 0:00:05]} 8. Rxe5 {[%emt 0:00:04]} O-O {[%emt 0:00:06]} 9. d4 {[%emt 0:00:07]} Bf6 {[%emt 0:00:18]} 10. Re2 {[%emt 0:00:09]} b6 {[%emt 0:02:33]} 11. Re1 {[%emt 0:00:06]} Bb7 {[%emt 0:02:04]} 12. a4 {[%emt 0:01:11]} a5 {[%emt 0:01:17]} 13. Bf4 {[%emt 0:03:48]} Nf5 {[%emt 0:00:29]} 14. c3 {[%emt 0:00:09]} d6 {[%emt 0:02:00]} 15. Nd2 {[%emt 0:04:05]} Bg5 {[%emt 0:02:26]} 16. Qg4 {[%emt 0:00:54]} Bxf4 {[%emt 0:00:11]} 17. Qxf4 {[%emt 0:00:05]} Nh4 {[%emt 0:01:01]} 18. Re3 {[%emt 0:02:31]} Bc6 {[%emt 0:02:42]} 19. b3 {[%emt 0:05:33]} Ng6 {[%emt 0:01:12]} 20. Qg3 {[%emt 0:03:03]} Re8 {[%emt 0:01:04]} 21. Rxe8+ {[%emt 0:28:40]} Qxe8 {[%emt 0:00:42]} 22. Bc4 {[%emt 0:00:14]} Qe7 {[%emt 0:00:34]} 23. Nf3 {[%emt 0:00:45]} Re8 {[%emt 0:01:04]} 24. h3 {[%emt 0:03:57]} Qf6 {[%emt 0:01:49]} 25. Re1 {[%emt 0:05:09]} Rxe1+ {[%emt 0:00:14]} 26. Nxe1 {[%emt 0:00:02]} Ne7 {[%emt 0:03:37]} 27. Qe3 {[%emt 0:04:20]} g6 {[%emt 0:02:32]} 28. Kf1 {[%emt 0:04:16]} Kg7 {[%emt 0:00:23]} 29. Be2 {[%emt 0:04:54]} Nf5 {[%emt 0:05:25]} 30. Qd2 {[%emt 0:06:21]} Bd5 {[%emt 0:06:59]} 31. Bd1 {[%emt 0:01:36]} h5 {[%emt 0:00:53]} 32. Nf3 {[%emt 0:03:50]} Bxf3 {[%emt 0:04:43]} 33. Bxf3 {[%emt 0:00:12]} Qe6 {[%emt 0:00:01]} 34. Bd1 {[%emt 0:02:40]} Ne7 {[%emt 0:00:37]} 35. h4 {[%emt 0:01:08]} Qe4 {[%emt 0:01:18]} 36. g3 {[%emt 0:05:42]} Nd5 {[%emt 0:00:01]} 37. Kg1 {[%emt 0:01:08]} Qb1 {[%emt 0:00:55]} 38. Kh2 {[%emt 0:01:50]} Nf6 {[%emt 0:05:02]} 39. Bc2 {[%emt 0:04:39]} Qf1 {[%emt 0:00:25]} 40. Bf5 {[%emt 0:01:54]} Kf8 {[%emt 0:09:22]} 41. Bh3 {[%emt 0:00:11]} Qb1 {[%emt 0:00:20]} 42. b4 {[%emt 0:02:12]} Qb3 {[%emt 0:01:41]} 43. bxa5 {[%emt 0:00:36]} bxa5 44. Qh6+ {[%emt 0:03:30]} Kg8 {[%emt 0:00:52]} 45. Qg5 {[%emt 0:00:28]} Kg7 {[%emt 0:00:01]} 46. Qxa5 {[%emt 0:00:33]} Qc2 {[%emt 0:00:01]} 47. Qa8 {[%emt 0:00:29]} d5 {[%emt 0:00:52]} 48. Kg1 {[%emt 0:00:32]} Ne4 {[%emt 0:00:11]} 49. Bg2 {[%emt 0:00:27]} Qxf2+ {[%emt 0:00:08]} 50. Kh1 {[%emt 0:00:11]} Qe1+ {[%emt 0:01:30]} 51. Kh2 {[%emt 0:00:01]} Qxg3+ {[%emt 0:00:07]} 52. Kg1 {[%emt 0:00:13]} Qf2+ {[%emt 0:00:09]} 53. Kh2 {[%emt 0:00:05]} Qxh4+ {[%emt 0:00:07]} 54. Kg1 {[%emt 0:00:03]} Qf2+ {[%emt 0:06:00]} 55. Kh2 {[%emt 0:00:06]} Qf4+ {[%emt 0:01:00]} 56. Kg1 {[%emt 0:00:07]} Nxc3 {[%emt 0:00:42]} 0-1

[Event "SixDays Budapest IM-A 11-2024"]
[Site "Budapest"]
[Date "2024.11.26"]
[Round "7.2"]
[White "Mahitosh Dey"]
[Black "Kolimar, Kristof Pal"]
[Result "1-0"]
[ECO "B43"]
[WhiteElo "2220"]
[BlackElo "2286"]
[Annotator "RC"]
[PlyCount "101"]
[EventDate "2024.11.20"]
[EventType "tourn"]
[EventCountry "HUN"]
[SourceTitle "playchess.com"]
[Source "ChessBase"]
[SourceQuality "1"]
[TimeControl "5400+30"]

1. e4 {[%emt 0:17:15]} c5 {[%emt 0:00:04]} 2. Nf3 {[%emt 0:00:04]} e6 {[%emt 0:00:08]} 3. d4 {[%emt 0:00:02]} cxd4 {[%emt 0:00:04]} 4. Nxd4 {[%emt 0:00:05]} a6 {[%emt 0:00:12]} 5. Nc3 {[%emt 0:00:20]} b5 {[%emt 0:00:09]} 6. Bd3 {[%emt 0:00:11]} Bb7 {[%emt 0:00:06]} 7. O-O {[%emt 0:00:28]} Nc6 {[%emt 0:00:03]} 8. Nb3 {[%emt 0:00:43]} Qc7 {[%emt 0:07:17]} 9. f4 {[%emt 0:00:05]} d6 {[%emt 0:00:13]} 10. Be3 {[%emt 0:02:07]} Nf6 {[%emt 0:00:42]} 11. a3 {[%emt 0:00:24]} Be7 {[%emt 0:00:42]} 12. Qe2 {[%emt 0:01:25]} O-O {[%emt 0:02:15]} 13. g4 {[%emt 0:06:17]} Rfe8 {[%emt 0:06:53]} 14. g5 {[%emt 0:00:49]} Nd7 {[%emt 0:00:04]} 15. Rf3 {[%emt 0:00:17]} g6 {[%emt 0:02:57]} 16. h4 {[%emt 0:01:19]} Bf8 {[%emt 0:07:14]} 17. h5 {[%emt 0:00:06]} Bg7 {[%emt 0:04:28]} 18. Rh3 {[%emt 0:01:17]} b4 {[%emt 0:13:44]} 19. axb4 {[%emt 0:02:32]} Nxb4 {[%emt 0:00:25]} 20. hxg6 {[%emt 0:00:55]} hxg6 {[%emt 0:01:01]} 21. Qh2 {[%emt 0:06:08]} Nxd3 {[%emt 0:09:21]} 22. cxd3 {[%emt 0:00:05]} f5 {[%emt 0:00:06]} 23. Rc1 {[%emt 0:01:21]} Qb8 {[%emt 0:12:09]} 24. Nd4 {[%emt 0:06:57]} e5 {[%emt 0:07:01]} 25. Nf3 {[%emt 0:07:17]} exf4 {[%emt 0:04:12]} 26. Qxf4 {[%emt 0:00:07]} fxe4 {[%emt 0:02:46]} 27. dxe4 {[%emt 0:03:43]} Re7 {[%emt 0:06:21]} 28. Bd4 {[%emt 0:07:29]} d5 {[%emt 0:07:23]} 29. Qh4 {[%emt 0:09:55]} Bxd4+ {[%emt 0:00:23]} 30. Nxd4 {[%emt 0:00:05]} Qe5 {[%emt 0:00:06]} 31. exd5 {[%emt 0:01:16]} Nf8 {[%emt 0:03:00]} 32. Rf1 {[%emt 0:01:38]} Nh7 {[%emt 0:00:55]} 33. Nf3 {[%emt 0:05:03]} Qe3+ {[%emt 0:00:34]} 34. Kg2 {[%emt 0:06:53]} Bc8 {[%emt 0:03:17]} 35. Rh2 {[%emt 0:00:24]} Rf7 {[%emt 0:00:21]} 36. Ne4 {[%emt 0:02:00]} Raa7 {[%emt 0:01:17]} 37. Nf6+ {[%emt 0:00:28]} Rxf6 {[%emt 0:00:32]} 38. gxf6 {[%emt 0:00:04]} Qe2+ {[%emt 0:00:18]} 39. Rf2 {[%emt 0:00:08]} Qe3 {[%emt 0:00:34]} 40. Rh1 {[%emt 0:03:21]} Rf7 {[%emt 0:00:41]} 41. Re1 {[%emt 0:01:33]} Qc5 {[%emt 0:00:01]} 42. Re8+ {[%emt 0:00:06]} Nf8 {[%emt 0:00:04]} 43. Ng5 {[%emt 0:02:16]} Qxd5+ {[%emt 0:00:19]} 44. Kg1 {[%emt 0:00:03]} Qd1+ {[%emt 0:01:31]} 45. Rf1 {[%emt 0:00:04]} Qg4+ {[%emt 0:00:25]} 46. Qxg4 {[%emt 0:00:04]} Bxg4 {[%emt 0:00:01]} 47. Nxf7 {[%emt 0:00:05]} Kxf7 {[%emt 0:00:04]} 48. Re7+ {[%emt 0:00:02]} Kg8 {[%emt 0:00:01]} 49. Rg7+ {[%emt 0:00:10]} Kh8 {[%emt 0:00:04]} 50. Rf2 {[%emt 0:00:10]} Bh5 {[%emt 0:01:12]} 51. Rc2 {[%emt 0:00:40]} 1-0

[Event "SixDays Budapest IM-A 11-2024"]
[Site "Budapest"]
[Date "2024.11.26"]
[Round "7.3"]
[White "Horvath, David"]
[Black "Nemeth, Zalan"]
[Result "1/2-1/2"]
[ECO "D30"]
[WhiteElo "2321"]
[BlackElo "2268"]
[Annotator "RC"]
[PlyCount "24"]
[EventDate "2024.11.20"]
[EventType "tourn"]
[EventCountry "HUN"]
[SourceTitle "playchess.com"]
[Source "ChessBase"]
[SourceQuality "1"]
[TimeControl "5400+30"]

1. d4 {[%emt 0:00:02]} d5 {[%emt 0:14:32]} 2. c4 {[%emt 0:00:08]} e6 {[%emt 0:00:13]} 3. Nf3 {[%emt 0:00:07]} c6 {[%emt 0:00:16]} 4. e3 {[%emt 0:00:05]} Nf6 {[%emt 0:00:07]} 5. b3 {[%emt 0:00:11]} Nbd7 {[%emt 0:00:29]} 6. Bd3 {[%emt 0:05:21]} Bd6 {[%emt 0:00:07]} 7. Bb2 {[%emt 0:10:09]} Qe7 {[%emt 0:00:56]} 8. Ne5 {[%emt 0:20:44]} h5 {[%emt 0:21:24]} 9. h3 {[%emt 0:18:08]} g5 {[%emt 0:09:51]} 10. Nd2 {[%emt 0:02:19]} Bc7 {[%emt 0:03:05]} 11. Nxd7 {[%emt 0:23:12]} Bxd7 {[%emt 0:01:04]} 12. Qc2 {[%emt 0:00:11]} e5 {[%emt 0:10:32]} 1/2-1/2

[Event "SixDays Budapest IM-A 11-2024"]
[Site "Budapest"]
[Date "2024.11.26"]
[Round "7.4"]
[White "Semprun Martinez, Fernando"]
[Black "Fodor, Balazs"]
[Result "0-1"]
[ECO "B94"]
[WhiteElo "2025"]
[BlackElo "2206"]
[Annotator "RC"]
[PlyCount "88"]
[EventDate "2024.11.20"]
[EventType "tourn"]
[EventCountry "HUN"]
[SourceTitle "playchess.com"]
[Source "ChessBase"]
[SourceQuality "1"]
[TimeControl "5400+30"]

1. e4 {[%emt 0:01:27]} c5 {[%emt 0:01:34]} 2. Nf3 {[%emt 0:00:02]} d6 {[%emt 0:00:10]} 3. d4 {[%emt 0:00:01]} cxd4 {[%emt 0:00:09]} 4. Nxd4 {[%emt 0:00:02]} Nf6 {[%emt 0:00:11]} 5. Nc3 {[%emt 0:00:01]} a6 {[%emt 0:00:10]} 6. Bg5 {[%emt 0:00:01]} Nbd7 {[%emt 0:00:11]} 7. Bc4 {[%emt 0:00:01]} Qc7 {[%emt 0:06:22]} 8. Qe2 {[%emt 0:03:55]} b5 {[%emt 0:07:45]} 9. Bb3 {[%emt 0:02:58]} Bb7 {[%emt 0:06:45]} 10. O-O-O {[%emt 0:01:40]} Nc5 {[%emt 0:07:43]} 11. Nd5 {[%emt 0:11:14]} Nxb3+ {[%emt 0:05:05]} 12. Nxb3 {[%emt 0:00:55]} Nxd5 {[%emt 0:02:44]} 13. exd5 {[%emt 0:00:17]} h6 {[%emt 0:00:05]} 14. Be3 {[%emt 0:02:21]} Rc8 {[%emt 0:10:18]} 15. Rhe1 {[%emt 0:00:49]} g5 {[%emt 0:16:18]} 16. Bd4 {[%emt 0:07:36]} Rg8 {[%emt 0:00:21]} 17. Bc3 {[%emt 0:01:53]} Rg6 {[%emt 0:01:37]} 18. g4 {[%emt 0:06:53]} Qd7 {[%emt 0:14:07]} 19. Qe4 {[%emt 0:19:03]} Rc4 {[%emt 0:02:43]} 20. Rd4 {[%emt 0:00:52]} Rxd4 {[%emt 0:03:10]} 21. Nxd4 {[%emt 0:04:33]} Qc8 {[%emt 0:00:41]} 22. Nf5 {[%emt 0:06:11]} Re6 {[%emt 0:06:05]} 23. Qd3 {[%emt 0:01:45]} Rxe1+ {[%emt 0:00:07]} 24. Bxe1 {[%emt 0:00:02]} Qc5 {[%emt 0:01:47]} 25. Ne3 {[%emt 0:00:45]} Bg7 {[%emt 0:03:27]} 26. Bc3 {[%emt 0:02:12]} Bxc3 {[%emt 0:00:09]} 27. Qxc3 {[%emt 0:00:03]} Qxc3 {[%emt 0:00:15]} 28. bxc3 {[%emt 0:00:02]} e6 {[%emt 0:00:08]} 29. dxe6 {[%emt 0:00:03]} fxe6 {[%emt 0:00:03]} 30. c4 {[%emt 0:02:13]} bxc4 {[%emt 0:00:55]} 31. Nxc4 {[%emt 0:00:09]} Ke7 {[%emt 0:03:07]} 32. Ne3 {[%emt 0:00:51]} Kf6 {[%emt 0:00:45]} 33. Kd2 {[%emt 0:00:49]} d5 {[%emt 0:00:23]} 34. Kd3 {[%emt 0:00:50]} Ke5 {[%emt 0:00:22]} 35. c3 {[%emt 0:01:07]} Kf4 {[%emt 0:01:05]} 36. Kd4 {[%emt 0:03:30]} Kf3 {[%emt 0:00:10]} 37. Ke5 {[%emt 0:00:50]} Kxf2 {[%emt 0:00:07]} 38. Nc2 {[%emt 0:00:19]} Kf3 {[%emt 0:00:28]} 39. h3 {[%emt 0:02:16]} Kg3 {[%emt 0:00:05]} 40. Kxe6 {[%emt 0:00:08]} Kxh3 {[%emt 0:00:07]} 41. Kf5 {[%emt 0:00:01]} Bc8+ {[%emt 0:00:30]} 42. Kg6 {[%emt 0:00:01]} Kxg4 {[%emt 0:00:11]} 43. Ne3+ {[%emt 0:00:42]} Kf3 {[%emt 0:00:10]} 44. Nxd5 {[%emt 0:00:11]} g4 {[%emt 0:00:06]} 0-1

[Event "SixDays Budapest IM-A 11-2024"]
[Site "Budapest"]
[Date "2024.11.26"]
[Round "7.5"]
[White "Wang, Hao(ZJ)"]
[Black "Krishna C R G"]
[Result "1-0"]
[ECO "C18"]
[WhiteElo "2095"]
[BlackElo "2448"]
[Annotator "TA"]
[PlyCount "51"]
[EventDate "2024.11.20"]
[EventType "tourn"]
[EventCountry "HUN"]
[SourceTitle "playchess.com"]
[Source "ChessBase"]
[SourceQuality "1"]
[TimeControl "5400+30"]

{[%evp 17,51,44,52,42,35,42,49,6,0,6,22,18,26,16,29,0,0,24,23,-15,0,-6,22,20,167,173,382,403,403,379,435,426,420,282,3131,2951]} 1. e4 {[%emt 0:00:02]} e6 {[%emt 0:08:13]} 2. d4 {[%emt 0:00:07]} d5 {[%emt 0:00:04]} 3. Nc3 {[%emt 0:00:07]} Bb4 {[%emt 0:02:05]} 4. e5 {[%emt 0:00:07]} c5 {[%emt 0:02:09]} 5. a3 {[%emt 0:00:05]} Bxc3+ {[%emt 0:00:06]} 6. bxc3 {[%emt 0:00:05]} Qc7 {[%emt 0:00:05]} 7. Qg4 {[%emt 0:00:51]} f5 {[%emt 0:02:05]} 8. Qh5+ {[%emt 0:02:08]} g6 {[%emt 0:02:13]} 9. Qd1 {[%emt 0:00:38]} Bd7 {[%emt 0:02:52]} 10. a4 {[%emt 0:04:12]} Nc6 {[%emt 0:03:49][%cal Bb8c6,Bc6a5,Ba5c4][%mdl 32]} 11. Ne2 {[%emt 0:08:13]} (11. dxc5 Qxe5+ (11... Nxe5 12. Bf4 $11) 12. Ne2 Nge7 $11) 11... Rc8 {[%emt 0:05:36]} 12. g3 {[%emt 0:06:44] White is slightly better.} (12. dxc5 Qxe5 13. Bf4 Qg7 $11) 12... Na5 {[%emt 0:15:58]} 13. dxc5 {[%emt 0:04:21]} Nc4 {[%emt 0:06:39]} 14. Bg2 {[%emt 0:00:30]} Qxc5 {[%emt 0:00:03][%cal Og8e7]} 15. O-O {[%emt 0:00:12]} h6 {[%emt 0:02:28]} 16. Nf4 {[%emt 0:01:04]} Ne7 {[%emt 0:00:39][%cal Oc5a5]} 17. Re1 {[%emt 0:00:23]} Kf7 {[%emt 0:02:19]} 18. g4 {[%emt 0:03:53]} fxg4 {[%emt 0:07:45]} 19. Qxg4 {[%emt 0:01:25][%cal Og2d5] Black must now prevent Bxd5!} Rcf8 {[%emt 0:11:52]} 20. Rb1 {[%emt 0:06:54] Some like it hot} b6 {[%emt 0:00:34] [#] Loses the game.} (20... Qc8 $11) 21. Bxd5 $1 $18 {[%emt 0:08:54]} Ke8 $2 {[%emt 0:19:03]} (21... Nxd5 $2 22. Rb5 Qc7 (22... Bxb5 23. Qxe6+ Kg7 24. Qxg6#) (22... Qc6 $2 23. Rxd5 Rhg8 24. Rd4 $18) 23. Rxd5 $18 (23. Qxg6+ Ke7 $11) (23. Nxd5 Qc8 $16)) (21... Qc8 {was worth a try.}) 22. Bxe6 {[%emt 0:01:33]} (22. Nxe6 $2 Qxf2+ (22... Nxd5 $2 23. Qxg6+ Ke7 24. Nxc5 $18) (22... Qxd5 23. Nc7+ Kd8 24. e6 $17) 23. Kh1 Qxe1+ $19) 22... Bxe6 {[%emt 0:00:08]} 23. Qxe6 {[%emt 0:00:12][%cal Ob1b4] Strongly threatening Rb4!} Rf5 {[%emt 0:00:29]} 24. Re4 {[%emt 0:06:26]} (24. Nxg6 {leads to mate.} Qxf2+ 25. Kh1 Qxe1+ 26. Kg2 Qf2+ (26... Nxe5 27. Qxe7#) 27. Kh3 Qf3+ 28. Kh4 Rh5#) (24. Rb5 Qc6 25. Qxc6+ Nxc6 $18) 24... Na5 {[%emt 0:02:54]} 25. Rb5 {[%emt 0:06:36]} (25. Nxg6 $2 {is a self mate.} Qxf2+ 26. Kh1 Qf1#) 25... Qxc3 {[%emt 0:00:02] [#]} (25... Qc6 26. Qxc6+ Naxc6) 26. Nd5 {[%emt 0:02:23] Weighted Error Value: White=0.28 (precise) /Black=0.37.  Mistake:       	---       	Black=3      Inaccurate:     	White=3     	Black=1      OK:         	White=7     	Black=6      Best:        	White=2     	---        Strong:       	White=1     	---} 1-0

[Event "SixDays Budapest IM-A 11-2024"]
[Site "Budapest"]
[Date "2024.11.26"]
[Round "8.2"]
[White "Fodor, Balazs"]
[Black "Wang, Hao(ZJ)"]
[Result "1/2-1/2"]
[ECO "A14"]
[WhiteElo "2206"]
[BlackElo "2095"]
[Annotator "RC"]
[PlyCount "21"]
[EventDate "2024.11.20"]
[EventType "tourn"]
[EventCountry "HUN"]
[SourceTitle "playchess.com"]
[Source "ChessBase"]
[SourceQuality "1"]
[TimeControl "5400+30"]

1. Nf3 {[%emt 0:05:00]} d5 {[%emt 0:08:27]} 2. c4 {[%emt 0:00:23]} e6 {[%emt 0:00:06]} 3. g3 {[%emt 0:00:05]} Nf6 {[%emt 0:00:06]} 4. Bg2 {[%emt 0:00:04]} Be7 {[%emt 0:00:06]} 5. O-O {[%emt 0:00:04]} O-O {[%emt 0:00:42]} 6. d4 {[%emt 0:00:06]} dxc4 {[%emt 0:02:07]} 7. Qc2 {[%emt 0:06:04]} a6 {[%emt 0:00:59]} 8. a4 {[%emt 0:00:07]} Bd7 {[%emt 0:00:33]} 9. Qxc4 {[%emt 0:00:08]} Bc6 {[%emt 0:00:14]} 10. Nc3 {[%emt 0:00:08]} Nbd7 {[%emt 0:00:40]} 11. Re1 {[%emt 0:03:20]} 1/2-1/2